[Event "SS Manhem Chess Week 2019 Goteborg Open"]
[Site "Molnlycke kulturhus, Biblioteksgatan 2, Molnlycke, Sweden"]
[Date "2019.08.18"]
[Round "8.16"]
[White "Carlfors, Viktor"]
[Black "Sorensen, Bent"]
[Result "1/2-1/2"]
[TimeControl "15 minutes + 5 seconds per move from move one (Round 1 - 4) / 90 minutes + 30 seconds per move from move one (Round 5 - 8)"]
[BlackTitle "IM"]
[WhiteFideId "1740725"]
[BlackFideId "1400410"]
[WhiteElo "1820"]
[BlackElo "2042"]

1. d4 {[%clk 01:30:56]} {[%emt 00:00:02]} d5 {[%clk 01:30:57]} {[%emt
00:00:05]} 2. Bf4 {[%clk 01:31:19]} {[%emt 00:00:07]} e6 {[%clk 01:31:13]}
{[%emt 00:00:14]} 3. e3 {[%clk 01:31:40]} {[%emt 00:00:08]} Bd6 {[%clk
01:31:34]} {[%emt 00:00:09]} 4. Bxd6 {[%clk 01:31:52]} {[%emt 00:00:19]} Qxd6
{[%clk 01:31:58]} {[%emt 00:00:06]} 5. Qg4 {[%clk 01:32:17]} {[%emt 00:00:05]}
Kf8 {[%clk 01:30:33]} {[%emt 00:01:55]} 6. Nd2 {[%clk 01:32:40]} {[%emt
00:00:06]} c5 {[%clk 01:28:28]} {[%emt 00:02:35]} 7. Ngf3 {[%clk 01:32:19]}
{[%emt 00:00:50]} Nc6 {[%clk 01:27:18]} {[%emt 00:01:41]} 8. c3 {[%clk
01:30:13]} {[%emt 00:02:36]} Bd7 {[%clk 01:23:21]} {[%emt 00:04:26]} 9. Qg3
{[%clk 01:29:42]} {[%emt 00:01:01]} Qxg3 {[%clk 01:22:43]} {[%emt 00:01:08]} 10.
hxg3 {[%clk 01:30:08]} {[%emt 00:00:05]} cxd4 {[%clk 01:20:26]} {[%emt
00:02:47]} 11. exd4 {[%clk 01:30:25]} {[%emt 00:00:12]} f6 {[%clk 01:19:17]}
{[%emt 00:01:39]} 12. Bd3 {[%clk 01:28:17]} {[%emt 00:02:38]} Nge7 {[%clk
01:16:52]} {[%emt 00:02:55]} 13. O-O-O {[%clk 01:24:09]} {[%emt 00:04:38]} g6
{[%clk 01:15:14]} {[%emt 00:02:08]} 14. Bc2 {[%clk 01:23:42]} {[%emt 00:00:57]}
Kg7 {[%clk 01:14:07]} {[%emt 00:01:37]} 15. Rde1 {[%clk 01:23:23]} {[%emt
00:00:49]} Rhc8 {[%clk 01:11:29]} {[%emt 00:03:07]} 16. g4 {[%clk 01:22:14]}
{[%emt 00:01:39]} h6 {[%clk 01:06:56]} {[%emt 00:05:04]} 17. Nb3 {[%clk
01:20:25]} {[%emt 00:02:19]} b6 {[%clk 01:05:57]} {[%emt 00:01:29]} 18. Rh2
{[%clk 01:17:10]} {[%emt 00:03:44]} Nd8 {[%clk 00:58:42]} {[%emt 00:07:45]} 19.
g5 {[%clk 01:11:54]} {[%emt 00:05:47]} fxg5 {[%clk 00:55:31]} {[%emt 00:03:40]}
20. Ne5 {[%clk 01:12:12]} {[%emt 00:00:12]} Be8 {[%clk 00:55:29]} {[%emt
00:00:32]} 21. g4 {[%clk 01:08:19]} {[%emt 00:04:23]} Ng8 {[%clk 00:51:23]}
{[%emt 00:04:36]} 22. Kd2 {[%clk 01:05:34]} {[%emt 00:03:15]} a5 {[%clk
00:50:31]} {[%emt 00:03:11]} 23. a3 {[%clk 01:05:30]} Nc6 {[%clk 00:46:52]}
{[%emt 00:02:55]} 24. Nc1 {[%clk 01:01:46]} {[%emt 00:04:13]} Nxe5 {[%clk
00:46:49]} {[%emt 00:00:33]} 25. Rxe5 {[%clk 01:02:05]} {[%emt 00:00:11]} Bf7
{[%clk 00:45:58]} {[%emt 00:01:20]} 26. Ba4 {[%clk 01:00:56]} {[%emt 00:01:40]}
Nf6 {[%clk 00:44:46]} {[%emt 00:01:43]} 27. f3 {[%clk 01:00:21]} {[%emt
00:01:04]} Rab8 {[%emt 00:01:04]} 28. Bb5 {[%clk 00:54:49]} {[%emt 00:02:18]}
Be8 {[%clk 00:42:19]} 29. Bxe8 {[%clk 00:55:04]} Rxe8 30. Rhe2 {[%emt
00:00:06]} Kf7 {[%clk 00:42:34]} {[%emt 00:00:14]} 31. Nd3 {[%clk 00:55:20]}
{[%emt 00:02:10]} Nd7 32. R5e3 {[%clk 00:51:47]} {[%emt 00:04:15]} h5 33. f4
gxf4 {[%clk 00:34:32]} 34. Nxf4 {[%clk 00:49:33]} {[%emt 00:00:45]} Nf6 35.
gxh5 {[%clk 00:46:09]} {[%emt 00:04:16]} gxh5 36. Re5 {[%emt 00:05:06]} Ne4+
{[%emt 00:00:40]} 37. Kd3 {[%clk 00:43:46]} {[%emt 00:00:58]} h4 38. Rh2 {[%clk
00:41:53]} {[%emt 00:08:07]} Kf6 39. Rxh4 {[%clk 00:30:38]} {[%emt 00:04:26]}
Rh8 40. Reh5 {[%clk 00:30:57]} {[%emt 00:12:48]} Rxh5 41. Rxh5 {[%emt
00:01:32]} Rg8 {[%emt 00:00:20]} 42. Kc2 {[%clk 00:29:17]} {[%emt 00:02:05]}
Rg4 {[%emt 00:02:54]} 43. Nd3 {[%emt 00:01:27]} Rg2+ {[%emt 00:03:53]} 44. Kb3
{[%clk 00:24:33]} {[%emt 00:01:58]} Rd2 45. Ne5 {[%clk 00:21:55]} {[%emt
00:02:50]} a4+ {[%clk 00:19:47]} 46. Kxa4 {[%clk 00:21:21]} Rxb2 47. Rh3 {[%emt
00:06:17]} b5+ {[%emt 00:00:12]} 48. Ka5 {[%clk 00:17:36]} {[%emt 00:00:25]}
Rb3 49. Nd7+ {[%clk 00:17:05]} {[%emt 00:06:17]} Kg5 50. Nc5 {[%emt 00:04:21]}
Nxc5 {[%emt 00:00:16]} 51. dxc5 {[%clk 00:17:17]} {[%emt 00:00:04]} d4 {[%clk
00:09:37]} {[%emt 00:00:58]} 52. c6 {[%clk 00:15:12]} {[%emt 00:02:35]} Rxa3+
{[%clk 00:07:07]} {[%emt 00:02:59]} 53. Kxb5 {[%clk 00:15:11]} {[%emt
00:00:31]} dxc3 {[%clk 00:06:12]} {[%emt 00:01:25]} 54. c7 {[%clk 00:15:25]}
{[%emt 00:00:16]} Ra8 {[%clk 00:06:30]} {[%emt 00:00:12]} 55. Kc6 {[%clk
00:11:10]} {[%emt 00:04:44]} e5 {[%clk 00:06:29]} {[%emt 00:00:32]} 56. Kd5
{[%clk 00:10:19]} {[%emt 00:01:21]} Kf4 {[%clk 00:05:13]} {[%emt 00:01:45]} 57.
Rxc3 {[%clk 00:10:19]} {[%emt 00:00:31]} Ra5+ {[%clk 00:04:31]} {[%emt
00:01:11]} 58. Kc6 {[%clk 00:10:00]} {[%emt 00:00:48]} Ra8 {[%clk 00:04:50]}
{[%emt 00:00:13]} 59. Rb3 {[%clk 00:09:24]} {[%emt 00:01:06]} Rc8 {[%clk
00:05:03]} {[%emt 00:00:18]} 60. Rb8 {[%clk 00:06:28]} {[%emt 00:03:25]} Rxc7+
{[%clk 00:05:20]} {[%emt 00:00:13]} 61. Kxc7 {[%clk 00:06:55]} {[%emt
00:00:03]} e4 {[%clk 00:05:30]} {[%emt 00:00:20]} 62. Kd6 {[%clk 00:05:57]}
{[%emt 00:01:28]} e3 {[%clk 00:05:26]} {[%emt 00:00:34]} 63. Kd5 {[%clk
00:05:32]} {[%emt 00:00:55]} e2 {[%clk 00:04:24]} {[%emt 00:01:32]} 64. Re8
{[%clk 00:05:11]} {[%emt 00:00:51]} Kf3 {[%clk 00:04:44]} {[%emt 00:00:10]} 65.
Kd4 {[%clk 00:05:05]} {[%emt 00:00:35]} Kf2 {[%clk 00:04:58]} {[%emt 00:00:16]}
66. Rf8+ {[%clk 00:04:14]} {[%emt 00:01:22]} Kg1 {[%clk 00:05:16]} {[%emt
00:00:11]} 67. Re8 {[%clk 00:04:23]} {[%emt 00:00:22]} Kf1 {[%clk 00:05:35]}
{[%emt 00:00:11]} 68. Rxe2 {[%clk 00:04:33]} {[%emt 00:00:21]} Kxe2 {[%clk
00:05:58]} {[%emt 00:00:07]} 1/2-1/2

[Event "SS Manhem Chess Week 2019 Goteborg Open"]
[Site "Molnlycke kulturhus, Biblioteksgatan 2, Molnlycke, Sweden"]
[Date "2019.08.18"]
[Round "8.17"]
[White "Rydstrom, Tom"]
[Black "Carlsson, Ludvig"]
[Result "1-0"]
[TimeControl "15 minutes + 5 seconds per move from move one (Round 1 - 4) / 90 minutes + 30 seconds per move from move one (Round 5 - 8)"]
[WhiteTitle "FM"]
[BlackTitle "CM"]
[WhiteFideId "1714830"]
[BlackFideId "1727010"]
[WhiteElo "2314"]
[BlackElo "2234"]

1. e4 {[%clk 01:21:21]} {[%emt 00:09:38]} c5 {[%clk 01:30:40]} {[%emt
00:00:19]} 2. Nf3 {[%clk 01:21:17]} {[%emt 00:00:35]} d6 {[%clk 01:30:52]}
{[%emt 00:00:17]} 3. d4 {[%clk 01:21:10]} {[%emt 00:00:38]} cxd4 {[%clk
01:31:07]} {[%emt 00:00:14]} 4. Nxd4 {[%clk 01:21:38]} {[%emt 00:00:03]} Nf6
{[%clk 01:31:15]} {[%emt 00:00:21]} 5. Nc3 {[%clk 01:22:06]} {[%emt 00:00:04]}
g6 {[%clk 01:31:32]} {[%emt 00:00:12]} 6. Be3 {[%clk 01:20:33]} {[%emt
00:02:03]} Bg7 {[%clk 01:31:51]} {[%emt 00:00:11]} 7. f3 {[%clk 01:20:36]}
{[%emt 00:00:28]} O-O {[%clk 01:32:06]} {[%emt 00:00:14]} 8. Bc4 {[%clk
01:21:02]} {[%emt 00:00:04]} Nc6 {[%clk 01:32:28]} {[%emt 00:00:09]} 9. Qd2
{[%clk 01:21:26]} {[%emt 00:00:07]} Bd7 {[%clk 01:32:45]} {[%emt 00:00:13]} 10.
g4 {[%clk 01:19:56]} {[%emt 00:02:00]} Ne5 {[%clk 01:30:28]} {[%emt 00:02:46]}
11. Be2 {[%clk 01:20:21]} {[%emt 00:00:06]} Rc8 {[%clk 01:29:34]} {[%emt
00:01:23]} 12. h4 {[%clk 01:19:08]} {[%emt 00:01:44]} Nc4 {[%clk 01:25:45]}
{[%emt 00:04:18]} 13. Bxc4 {[%clk 01:19:35]} {[%emt 00:00:04]} Rxc4 {[%clk
01:26:05]} {[%emt 00:00:10]} 14. O-O-O {[%clk 01:16:59]} {[%emt 00:03:07]} Qb8
{[%clk 01:21:32]} {[%emt 00:05:02]} 15. h5 {[%clk 01:10:09]} {[%emt 00:07:20]}
Rfc8 {[%clk 01:20:57]} {[%emt 00:01:06]} 16. Kb1 {[%clk 01:08:05]} {[%emt
00:02:33]} Rxc3 {[%clk 00:59:32]} {[%emt 00:21:55]} 17. bxc3 {[%clk 01:08:10]}
{[%emt 00:00:25]} Qc7 {[%clk 00:59:44]} {[%emt 00:00:17]} 18. hxg6 {[%clk
01:05:04]} {[%emt 00:03:36]} hxg6 {[%clk 00:59:58]} {[%emt 00:00:15]} 19. Bh6
{[%clk 00:59:10]} {[%emt 00:06:25]} Qxc3 {[%clk 01:00:19]} {[%emt 00:00:09]} 20.
Bxg7 {[%clk 00:56:44]} {[%emt 00:02:56]} Qxd2 {[%clk 01:00:30]} {[%emt
00:00:19]} 21. Rxd2 {[%clk 00:57:13]} {[%emt 00:00:02]} Kxg7 {[%clk 01:00:48]}
{[%emt 00:00:11]} 22. Kb2 {[%clk 00:57:00]} {[%emt 00:00:44]} Rc4 {[%clk
00:53:45]} {[%emt 00:07:31]} 23. Ne2 {[%clk 00:52:00]} {[%emt 00:05:30]} Rb4+
{[%clk 00:50:40]} {[%emt 00:03:36]} 24. Ka1 {[%clk 00:45:33]} {[%emt 00:06:57]}
Ra4 {[%clk 00:48:50]} {[%emt 00:02:19]} 25. e5 {[%clk 00:43:39]} {[%emt
00:02:25]} Ne8 {[%clk 00:49:10]} {[%emt 00:00:09]} 26. Nc3 {[%clk 00:43:35]}
{[%emt 00:00:35]} Ra5 {[%clk 00:48:23]} {[%emt 00:01:17]} 27. Rdh2 {[%clk
00:25:34]} {[%emt 00:18:31]} e6 {[%clk 00:40:10]} {[%emt 00:08:43]} 28. g5
{[%clk 00:16:09]} {[%emt 00:09:55]} Kf8 {[%clk 00:39:01]} {[%emt 00:01:38]} 29.
exd6 {[%clk 00:15:06]} {[%emt 00:01:34]} Nxd6 {[%clk 00:39:12]} {[%emt
00:00:19]} 30. Rd1 {[%clk 00:14:29]} {[%emt 00:01:06]} Nb5 {[%clk 00:38:13]}
{[%emt 00:01:30]} 31. Rxd7 {[%clk 00:12:29]} {[%emt 00:02:31]} Nxc3 {[%clk
00:38:35]} {[%emt 00:00:08]} 32. Kb2 {[%clk 00:12:58]} {[%emt 00:00:01]} Na4+
{[%clk 00:38:48]} {[%emt 00:00:17]} 33. Kc1 {[%clk 00:13:26]} {[%emt 00:00:01]}
Rxg5 {[%clk 00:36:56]} {[%emt 00:02:21]} 34. Rxb7 {[%clk 00:13:55]} {[%emt
00:00:02]} a6 {[%clk 00:37:13]} {[%emt 00:00:12]} 35. Ra7 {[%clk 00:13:31]}
{[%emt 00:00:54]} Nc5 {[%clk 00:37:36]} {[%emt 00:00:08]} 36. Kd2 {[%clk
00:12:53]} {[%emt 00:01:08]} Rf5 {[%clk 00:33:46]} {[%emt 00:04:20]} 37. Rh8+
{[%clk 00:12:28]} {[%emt 00:00:55]} Kg7 {[%clk 00:34:09]} {[%emt 00:00:06]} 38.
Rc8 {[%clk 00:12:56]} {[%emt 00:00:02]} g5 {[%clk 00:34:01]} {[%emt 00:00:38]}
39. Ke3 {[%clk 00:13:18]} {[%emt 00:00:09]} Kg6 {[%clk 00:33:03]} {[%emt
00:01:27]} 40. c4 {[%clk 00:13:37]} {[%emt 00:00:10]} Kh5 {[%clk 00:32:05]}
{[%emt 00:01:29]} 41. Kd4 {[%clk 00:10:29]} {[%emt 00:03:36]} Na4 {[%clk
00:30:03]} {[%emt 00:02:34]} 42. Rxa6 {[%clk 00:10:37]} {[%emt 00:00:23]} Rf4+
{[%clk 00:29:19]} {[%emt 00:01:13]} 43. Ke3 {[%clk 00:10:31]} {[%emt 00:00:36]}
Nb2 {[%clk 00:28:48]} {[%emt 00:01:00]} 44. c5 {[%clk 00:10:45]} {[%emt
00:00:16]} Nc4+ {[%clk 00:28:28]} {[%emt 00:00:51]} 45. Ke2 {[%clk 00:10:27]}
{[%emt 00:00:48]} Rd4 {[%clk 00:17:56]} {[%emt 00:11:01]} 46. c6 {[%clk
00:10:09]} {[%emt 00:00:48]} Rd2+ {[%clk 00:17:43]} {[%emt 00:00:43]} 47. Ke1
{[%clk 00:10:37]} {[%emt 00:00:03]} Kh4 {[%clk 00:17:43]} {[%emt 00:00:30]} 48.
Ra4 {[%clk 00:10:14]} {[%emt 00:00:53]} Rc2 {[%clk 00:18:08]} {[%emt 00:00:05]}
49. Kd1 {[%clk 00:05:32]} {[%emt 00:05:12]} Rc3 {[%clk 00:18:31]} {[%emt
00:00:07]} 50. c7 {[%clk 00:03:57]} {[%emt 00:02:05]} Kg3 {[%clk 00:18:52]}
{[%emt 00:00:08]} 51. Rb4 {[%clk 00:04:07]} {[%emt 00:00:21]} Kf2 {[%clk
00:18:32]} {[%emt 00:00:49]} 52. Rb3 {[%clk 00:03:53]} {[%emt 00:00:44]} Ne3+
{[%clk 00:17:46]} {[%emt 00:01:16]} 53. Kd2 {[%clk 00:04:01]} {[%emt 00:00:23]}
Rc2+ {[%clk 00:17:51]} {[%emt 00:00:25]} 54. Kd3 {[%clk 00:04:31]} Rc5 {[%clk
00:17:43]} {[%emt 00:00:38]} 55. a4 {[%clk 00:02:47]} {[%emt 00:02:14]} f5
{[%clk 00:16:24]} {[%emt 00:01:49]} 56. Kd4 {[%clk 00:02:51]} {[%emt 00:00:26]}
Rd5+ {[%clk 00:16:41]} {[%emt 00:00:13]} 57. Kc3 {[%clk 00:03:20]} Rc5+ {[%clk
00:16:42]} {[%emt 00:00:29]} 58. Kb4 {[%clk 00:03:36]} {[%emt 00:00:13]} Rxc7
{[%clk 00:17:02]} {[%emt 00:00:11]} 59. Rxc7 {[%clk 00:03:49]} {[%emt
00:00:17]} Nd5+ {[%clk 00:17:28]} {[%emt 00:00:04]} 60. Kc5 {[%clk 00:04:12]}
{[%emt 00:00:06]} Nxc7 {[%clk 00:17:54]} {[%emt 00:00:05]} 61. Kd6 {[%clk
00:03:57]} {[%emt 00:00:42]} g4 {[%clk 00:17:13]} {[%emt 00:01:14]} 62. fxg4
{[%clk 00:04:02]} {[%emt 00:00:24]} fxg4 {[%clk 00:17:40]} {[%emt 00:00:02]} 63.
Kxc7 {[%clk 00:04:19]} {[%emt 00:00:14]} e5 {[%clk 00:17:41]} {[%emt 00:00:30]}
64. a5 {[%clk 00:04:34]} {[%emt 00:00:15]} e4 {[%clk 00:17:39]} {[%emt
00:00:31]} 65. a6 {[%clk 00:04:58]} {[%emt 00:00:06]} e3 {[%clk 00:18:06]}
{[%emt 00:00:03]} 66. a7 {[%clk 00:05:23]} {[%emt 00:00:06]} e2 {[%clk
00:18:32]} {[%emt 00:00:04]} 67. Rb2 {[%clk 00:05:42]} {[%emt 00:00:11]} Kf1
{[%clk 00:18:47]} {[%emt 00:00:14]} 68. a8=Q {[%clk 00:06:05]} {[%emt
00:00:08]} e1=N {[%clk 00:19:09]} {[%emt 00:00:07]} 69. Qh1# {[%clk 00:06:32]}
{[%emt 00:00:03]} 1-0

[Event "SS Manhem Chess Week 2019 Goteborg Open"]
[Site "Molnlycke kulturhus, Biblioteksgatan 2, Molnlycke, Sweden"]
[Date "2019.08.18"]
[Round "8.18"]
[White "Johansson, Roy"]
[Black "Dale, Svein"]
[Result "1-0"]
[TimeControl "15 minutes + 5 seconds per move from move one (Round 1 - 4) / 90 minutes + 30 seconds per move from move one (Round 5 - 8)"]
[WhiteFideId "1745972"]
[BlackFideId "1523120"]
[WhiteElo "1976"]
[BlackElo "1772"]

1. d4 {[%clk 01:30:07]} {[%emt 00:00:52]} Nf6 {[%clk 01:30:58]} {[%emt
00:00:02]} 2. Bf4 {[%clk 01:30:30]} {[%emt 00:00:07]} c5 {[%clk 01:31:07]}
{[%emt 00:00:21]} 3. e3 {[%clk 01:30:49]} {[%emt 00:00:11]} e6 {[%clk
01:30:08]} {[%emt 00:01:29]} 4. c3 {[%clk 01:30:55]} {[%emt 00:00:24]} d5
{[%clk 01:30:11]} {[%emt 00:00:27]} 5. Nd2 {[%clk 01:31:02]} {[%emt 00:00:24]}
cxd4 {[%clk 01:28:33]} {[%emt 00:02:08]} 6. exd4 {[%clk 01:31:23]} {[%emt
00:00:09]} Bd6 {[%clk 01:28:16]} {[%emt 00:00:47]} 7. Bg3 {[%clk 01:31:20]}
{[%emt 00:00:32]} O-O {[%emt 00:00:30]} 8. Bd3 {[%clk 01:31:26]} {[%emt
00:00:22]} b6 {[%clk 01:28:33]} {[%emt 00:00:16]} 9. Qe2 {[%clk 01:31:07]}
{[%emt 00:00:49]} a5 {[%clk 01:27:37]} {[%emt 00:01:26]} 10. Ngf3 {[%clk
01:30:13]} {[%emt 00:01:24]} Ba6 {[%clk 01:26:23]} {[%emt 00:01:44]} 11. Bxa6
{[%clk 01:29:34]} {[%emt 00:01:09]} Nxa6 {[%clk 01:26:32]} {[%emt 00:00:21]} 12.
Ne5 {[%clk 01:29:19]} {[%emt 00:00:45]} Nc7 {[%clk 01:22:47]} {[%emt 00:04:14]}
13. Bh4 {[%clk 01:26:23]} {[%emt 00:03:26]} Nce8 {[%clk 01:20:47]} {[%emt
00:02:30]} 14. O-O {[%clk 01:25:37]} {[%emt 00:01:17]} Qb8 {[%clk 01:18:21]}
{[%emt 00:02:55]} 15. f4 {[%clk 01:24:51]} {[%emt 00:01:16]} Qb7 {[%clk
01:15:33]} {[%emt 00:03:18]} 16. Rae1 {[%clk 01:22:20]} {[%emt 00:03:01]} g6
{[%clk 01:13:17]} {[%emt 00:02:46]} 17. Bg5 {[%clk 01:19:05]} {[%emt 00:03:45]}
Ne4 {[%clk 01:04:31]} {[%emt 00:09:16]} 18. Nxe4 {[%clk 01:17:27]} {[%emt
00:02:07]} dxe4 {[%clk 01:04:15]} {[%emt 00:00:47]} 19. Bh6 {[%clk 01:15:44]}
{[%emt 00:02:13]} Ng7 {[%clk 01:01:18]} {[%emt 00:03:27]} 20. Qxe4 {[%clk
01:15:04]} {[%emt 00:01:10]} Qxe4 {[%clk 01:01:20]} {[%emt 00:00:29]} 21. Rxe4
{[%clk 01:15:25]} {[%emt 00:00:09]} Rfc8 {[%clk 01:01:21]} {[%emt 00:00:28]} 22.
g4 {[%clk 01:12:48]} {[%emt 00:03:08]} Ne8 {[%clk 00:56:19]} {[%emt 00:05:30]}
23. Nd7 {[%clk 01:10:42]} {[%emt 00:02:38]} Bc7 {[%clk 00:54:00]} {[%emt
00:02:48]} 24. Re3 {[%clk 01:05:26]} {[%emt 00:07:55]} Rd8 {[%clk 00:53:48]} 25.
Ne5 {[%clk 01:05:21]} Bxe5 {[%clk 00:48:58]} {[%emt 00:04:28]} 26. fxe5 {[%clk
01:04:14]} {[%emt 00:01:38]} b5 {[%clk 00:48:12]} {[%emt 00:01:15]} 27. Ref3
{[%clk 01:03:24]} {[%emt 00:01:20]} Rd7 {[%clk 00:47:38]} {[%emt 00:01:04]} 28.
h4 {[%clk 01:02:01]} {[%emt 00:01:54]} Nc7 {[%clk 00:47:54]} {[%emt 00:00:14]}
29. h5 {[%clk 01:01:38]} {[%emt 00:00:53]} Rc8 {[%clk 00:37:36]} {[%emt
00:10:48]} 30. hxg6 {[%clk 01:01:28]} {[%emt 00:00:40]} hxg6 {[%clk 00:37:54]}
{[%emt 00:00:12]} 31. R1f2 {[%clk 01:00:57]} {[%emt 00:01:00]} Nd5 {[%clk
00:37:05]} {[%emt 00:01:20]} 32. Rh2 {[%clk 00:59:55]} {[%emt 00:01:32]} Rcc7
{[%clk 00:34:26]} {[%emt 00:03:09]} 33. Bg5 {[%clk 00:58:18]} {[%emt 00:02:07]}
f5 {[%clk 00:30:27]} {[%emt 00:04:28]} 34. exf6 {[%clk 00:56:59]} {[%emt
00:01:50]} Rh7 {[%clk 00:30:18]} {[%emt 00:00:40]} 35. Rxh7 {[%clk 00:56:25]}
{[%emt 00:01:03]} Rxh7 {[%clk 00:30:10]} {[%emt 00:00:37]} 36. Bd2 {[%clk
00:55:58]} {[%emt 00:00:57]} Kf7 {[%clk 00:28:56]} {[%emt 00:01:44]} 37. g5
{[%clk 00:55:52]} {[%emt 00:00:36]} Rh5 {[%clk 00:28:59]} {[%emt 00:00:27]} 38.
Kg2 {[%clk 00:55:12]} {[%emt 00:01:09]} Nb6 {[%clk 00:28:12]} {[%emt 00:01:16]}
39. Rh3 {[%clk 00:55:18]} {[%emt 00:00:25]} Rxh3 {[%clk 00:27:29]} {[%emt
00:01:13]} 40. Kxh3 {[%clk 00:55:39]} {[%emt 00:00:09]} a4 {[%clk 00:27:45]}
{[%emt 00:00:15]} 41. Kg4 {[%clk 00:53:56]} {[%emt 00:02:12]} Nc4 {[%clk
00:26:32]} {[%emt 00:01:43]} 42. Bc1 {[%clk 00:54:11]} {[%emt 00:00:15]} Nb6
{[%clk 00:25:12]} {[%emt 00:01:51]} 43. Kf3 {[%clk 00:54:18]} {[%emt 00:00:23]}
Nc4 {[%clk 00:24:46]} {[%emt 00:00:55]} 44. Ke4 {[%clk 00:54:13]} {[%emt
00:00:35]} Nd6+ {[%clk 00:24:48]} {[%emt 00:00:29]} 45. Kd3 {[%clk 00:53:48]}
{[%emt 00:00:55]} Ke8 {[%clk 00:24:02]} {[%emt 00:01:16]} 46. b3 {[%clk
00:53:57]} {[%emt 00:00:21]} axb3 {[%clk 00:23:10]} {[%emt 00:01:22]} 47. axb3
{[%clk 00:54:18]} {[%emt 00:00:09]} Kd7 {[%clk 00:23:29]} {[%emt 00:00:11]} 48.
c4 {[%clk 00:54:30]} {[%emt 00:00:18]} Kc6 {[%clk 00:23:37]} {[%emt 00:00:21]}
49. Ba3 {[%clk 00:54:30]} {[%emt 00:00:30]} Nf7 {[%clk 00:24:02]} {[%emt
00:00:05]} 50. Bc1 {[%clk 00:54:24]} {[%emt 00:00:36]} Nd6 {[%clk 00:23:10]}
{[%emt 00:01:22]} 51. Bf4 {[%clk 00:54:01]} {[%emt 00:00:53]} Nf7 {[%clk
00:23:27]} {[%emt 00:00:13]} 52. Kc3 {[%clk 00:53:54]} {[%emt 00:00:37]} Nd8
{[%clk 00:22:51]} {[%emt 00:01:06]} 53. Kb4 {[%clk 00:53:55]} {[%emt 00:00:29]}
bxc4 {[%clk 00:22:46]} {[%emt 00:00:35]} 54. bxc4 {[%clk 00:53:17]} {[%emt
00:01:09]} Nf7 {[%clk 00:23:03]} {[%emt 00:00:13]} 55. Kc3 {[%clk 00:53:17]}
{[%emt 00:00:30]} Nd8 {[%clk 00:23:09]} {[%emt 00:00:24]} 56. Kd3 {[%clk
00:53:31]} {[%emt 00:00:14]} Nf7 {[%clk 00:23:20]} {[%emt 00:00:20]} 57. Ke4
{[%clk 00:53:44]} {[%emt 00:00:17]} Kd7 {[%clk 00:23:23]} {[%emt 00:00:26]} 58.
d5 {[%clk 00:53:43]} {[%emt 00:00:32]} exd5+ {[%clk 00:20:52]} {[%emt
00:03:02]} 59. cxd5 {[%emt 00:01:17]} 1-0